fUST/lending_fUST_20241012
["ID","MTS","AMOUNT","RATE_DAILY","PERIOD"]
[340160508,1728713446836,-500.0,0.0005589,120]
[340160509,1728713446845,-319.39394463,0.0005589,120]
[340160510,1728713446996,161.0,0.00048,90]
[340160511,1728713489692,164.26,0.000495,45]
[340160512,1728713541010,250.0000031,0.00045605,2]
[340160555,1728714359155,-918.04322034,0.00037647,2]
[340160559,1728714434145,-791.40841076,0.00037647,2]
[340160560,1728714434172,-400.0,0.00041762,30]
[340160561,1728714434198,-300.0,0.00041762,5]
[340160562,1728714434226,-1790.94293439,0.00041763,2]
[340160563,1728714446437,-20562.89914771,0.00041763,2]
[340160564,1728714446461,-7865.68522596,0.00044558,120]
[340160565,1728714446484,-318.048584,0.00044658,2]
[340160566,1728714446506,-318.048584,0.00049517,2]
[340160567,1728714446529,-162.5390517,0.00050104,2]
[340160568,1728714446557,-164.27,0.000502,48]
[340160569,1728714446581,-180.805,0.00050285,89]
[340160570,1728714446603,-1712.46182245,0.00050806,120]
[340160587,1728714545330,-679.95410069,0.00035,7]
[340160624,1728714632214,-709.07362597,0.00050806,120]
[340160626,1728714632226,-951.60070353,0.00050806,120]
[340160628,1728714632238,-4492.54907401,0.00050806,120]
[340160629,1728714632248,-3647.67075,0.00051,120]
[340160630,1728714632257,-53.86678189,0.00052,7]
[340160679,1728714638618,-3476.08415731,0.00052,7]
[340160707,1728714646151,-1041.23241902,0.00052,7]
[340160710,1728714693382,163.35,0.000502,48]
[340160711,1728714704123,10000.0,0.00034,2]
[340160718,1728715329476,3101.01,0.00034,2]
[340160723,1728715541130,-2009.97,0.0004,2]
[340160724,1728715541153,-312.221562,0.00044658,2]
[340160725,1728715541174,-312.221562,0.00049517,2]
[340160726,1728715541195,-400.0,0.0005022,120]
[340160727,1728715541217,-229.0,0.0005022,15]
[340160728,1728715541238,-4597.20905181,0.00050221,2]
[340160729,1728715541259,-1529.708294,0.00051239,2]
[340160730,1728715541280,-180.805,0.000519,94]
[340160731,1728715541301,-19757.11775224,0.00052,7]
[340160732,1728715541322,-137.15578087,0.000529,120]
[340160733,1728715559123,-24.42621381,0.000529,120]
[340160734,1728715559146,-162.0,0.00053,120]
[340160735,1728715559168,-183.0,0.00053,120]
[340160736,1728715559191,-162.3900458,0.00053151,30]
[340160737,1728715559211,-301.5202838,0.00053151,30]
[340160738,1728715559233,-301.5202838,0.00053151,30]
[340160739,1728715559255,-964.84749482,0.00053653,120]
[340160740,1728715629119,-250.960348,0.00054247,30]
[340160741,1728715629143,-312.221562,0.00054376,2]
[340160742,1728715629166,-599.59,0.00054794,18]
[340160743,1728715629187,-175.41319623,0.00054794,120]
[340160744,1728715629209,-500.0,0.00054794,120]
[340160745,1728715629231,-500.0,0.00054794,120]
[340160746,1728715629252,-1000.0,0.00054794,120]
[340160747,1728715629273,-500.0,0.00054794,60]
[340160748,1728715629293,-166.911357,0.00054795,120]
[340160749,1728715629314,-500.0,0.00055341,120]
[340160750,1728715629335,-500.0,0.00055341,120]
[340160751,1728715629356,-211.48509545,0.00055341,120]
[340160752,1728715629377,-500.0,0.00055341,120]
[340160753,1728715629398,-616.26,0.00055341,120]
[340160754,1728715629419,-500.0,0.00055341,120]
[340160755,1728715629440,-500.0,0.00055341,2]
[340160756,1728715629461,-500.0,0.00055341,120]
[340160757,1728715629490,-500.0,0.00055341,120]
[340160758,1728715629511,-309.53549563,0.00055341,120]
[340160759,1728715629533,-599.59,0.00055342,18]
[340160760,1728715629555,-500.0,0.00055342,120]
[340160761,1728715629582,-500.0,0.00055342,120]
[340160762,1728715629603,-1000.0,0.00055342,120]
[340160763,1728715629625,-500.0,0.00055342,60]
[340160764,1728715629645,-150.0,0.00055377,120]
[340160765,1728715629666,-1220.0,0.00055377,120]
[340160766,1728715629687,-79.37425507,0.0005539,28]
[340160768,1728715747188,-200.0,0.00048,120]
[340160824,1728715838494,-500.0,0.00054794,120]
[340160826,1728715838505,-500.55047185,0.00054794,120]
[340160828,1728715838514,-500.0,0.00054794,120]
[340160831,1728715838524,-166.911357,0.00054795,120]
[340160833,1728715838534,-500.0,0.00055342,120]
[340160835,1728715838545,-173.11649926,0.00055342,120]
[340160837,1728715838554,-10079.83871724,0.00055389,120]
[340160839,1728715838566,-549.62,0.00055488,18]
[340160841,1728715838576,-5000.0,0.00055498,120]
[340160843,1728715838587,-5000.0,0.00055498,120]
[340160845,1728715838598,-5000.0,0.00055498,120]
[340160848,1728715838609,-5000.0,0.00055498,120]
[340160850,1728715838619,-5000.0,0.00055498,120]
[340160852,1728715838631,-161.5819947,0.00055498,120]
[340160854,1728715838641,-500.0,0.00055499,120]
[340160856,1728715838652,-509.27775935,0.00055499,120]
[340160857,1728715838663,-500.0,0.00055499,120]
[340160858,1728715838674,-5000.0,0.00055499,120]
[340160859,1728715838686,-20037.87083327,0.000555,120]
[340160860,1728715838696,-744.81154862,0.000557,2]
[340160861,1728715838707,-744.81154859,0.00055762,2]
[340160862,1728715838717,-10370.1183363,0.0005579,84]
[340160863,1728715838728,-170.2,0.0005579,30]
[340160864,1728715838737,-851.0,0.0005579,30]
[340160865,1728715838746,-10429.3,0.0005579,10]
[340160866,1728715838756,-5000.0,0.00055799,120]
[340160867,1728715838766,-27221.41688789,0.000558,63]
[340160868,1728715838775,-500.0,0.000558,25]
[340160869,1728715838784,-500.0,0.000558,36]
[340160870,1728715838794,-500.0,0.000558,36]
[340160872,1728715838806,-611.0,0.000558,30]
[340160875,1728715838818,-744.81154859,0.00055825,2]
[340160877,1728715838830,-744.81154859,0.00055887,2]
[340160879,1728715838843,-2249.28178359,0.00055889,120]
[340160881,1728715838854,-500.0,0.00055889,120]
[340160883,1728715838866,-616.26,0.00055889,120]
[340160885,1728715838878,-500.0,0.00055889,120]
[340160887,1728715838889,-500.0,0.00055889,2]
[340160889,1728715838899,-500.0,0.00055889,120]
[340160891,1728715838909,-407.54736897,0.00055889,120]
[340160893,1728715838919,-500.0,0.0005589,120]
[340160895,1728715838928,-1000.0,0.0005589,120]
[340160897,1728715838939,-513.13518598,0.0005589,60]
[340160899,1728715838950,-500.0,0.0005589,120]
[340160902,1728715838961,-373.40471652,0.00055917,120]
[340160904,1728715838974,-303.99669965,0.00055917,120]
[340160906,1728715838986,-422.73797223,0.00055917,120]
[340160908,1728715838997,-24885.4225821,0.00055917,9]
[340160910,1728715839007,-3580.22763754,0.00055917,9]
[340160912,1728715839017,-254.00687657,0.00055918,9]
[340161033,1728715843510,-3073.93433366,0.00055398,28]
[340161043,1728715846691,-869.1923507,0.00055398,28]
[340161044,1728715846703,-596.51223923,0.00055918,9]
[340161045,1728715867033,158.0,0.0004457,2]
[340161047,1728715924307,273.421128,0.00044658,2]
[340161048,1728715924521,273.421128,0.00049517,2]
[340161058,1728716733135,-246.079015,0.00044658,2]
[340161059,1728716733159,-166.0,0.0004927,2]
[340161060,1728716733182,-98.43374868,0.00049517,2]
[340161061,1728716750118,-147.64526632,0.00049517,2]
[340161062,1728716750143,-1491.304028,0.0005024,2]
[340161063,1728716750166,-1491.304028,0.00050925,2]
[340161064,1728716750189,-315.0,0.00051509,120]
[340161065,1728716750214,-1152.53625403,0.0005151,120]
[340161071,1728716945112,-240.7865116,0.00039,2]
[340161072,1728716946200,-1521.93944335,0.00049561,120]
[340161073,1728716981784,497.101342,0.00048143,2]
[340161074,1728716982139,497.101342,0.00048828,2]
[340161075,1728716982491,497.101342,0.00049513,2]
[340161124,1728717032592,-203.47053069,0.000509,2]
[340161136,1728717032705,-197.0,0.00051,120]
[340161138,1728717032717,-3514.21956711,0.0005151,120]
[340161176,1728717038628,-658.50612679,0.0005151,120]
[340161178,1728717038859,-1283.12551158,0.0005151,120]
[340161182,1728717041299,250.0000031,0.00048507,2]
[340161200,1728717046651,-2377.51251753,0.0005151,120]
[340161201,1728717046662,-842.38564252,0.00054,5]
[340161202,1728717046674,-246.079015,0.00054376,2]
[340161203,1728717046684,-582.39023056,0.00054794,120]
[340161204,1728717046695,-500.0,0.00054794,2]
[340161205,1728717046705,-1000.0,0.00054794,120]
[340161206,1728717046715,-500.0,0.00054794,120]
[340161207,1728717046727,-500.0,0.00054794,120]
[340161208,1728717046737,-167.600806,0.00054795,120]
[340161209,1728717046746,-959.53704,0.0005488,90]
[340161210,1728717046756,-1000.0,0.00055,120]
[340161211,1728717046766,-1324.49474839,0.0005508,90]
[340161223,1728717943135,-160.6560221,0.00044658,2]
[340161224,1728717943163,-209.167162,0.00044658,2]
[340161225,1728717943186,-182.049774,0.00048988,2]
[340161226,1728717943211,-1268.9,0.00049035,2]
[340161227,1728717943234,-182.049774,0.00049498,2]
[340161228,1728717943257,-209.167162,0.00049517,2]
[340161229,1728717943408,-182.049774,0.00050009,2]
[340161230,1728717943432,-500.0,0.0005031,17]
[340161231,1728717943455,-25.33761251,0.00050399,15]
[340161235,1728718043098,-278.29213956,0.00050399,15]
[340161236,1728718124685,166.4491594,0.0003,2]
[340161242,1728718156100,-247.61635905,0.0005,120]
[340161263,1728718232771,-583.764421,0.0005031,17]
[340161264,1728718232785,-163.47,0.000505,48]
[340161265,1728718232799,-182.049774,0.00050519,2]
[340161266,1728718232809,-182.049774,0.0005103,2]
[340161267,1728718232821,-151.0,0.0005108,7]
[340161268,1728718232835,-151.0,0.0005128,2]
[340161269,1728718232845,-182.049774,0.0005154,2]
[340161270,1728718232857,-161.0,0.00053,120]
[340161271,1728718232870,-247.0,0.00053399,15]
[340161272,1728718232885,-6266.6909784,0.000534,120]
[340161273,1728718232898,-5800.0,0.000535,90]
[340161274,1728718232913,-151.0,0.0005392,5]
[340161275,1728718232926,-163.47,0.000541,54]
[340161276,1728718232940,-163.47,0.000541,54]
[340161277,1728718232952,-209.167162,0.00054376,2]
[340161278,1728718232969,-158.26916,0.00054795,120]
[340161279,1728718232983,-668.0,0.00055,120]
[340161280,1728718232996,-1731.0,0.00055,30]
[340161281,1728718233009,-180.80692852,0.00055,104]
[340161282,1728718233021,-1000.0,0.00055,120]
[340161283,1728718233033,-1000.0,0.00055,120]
[340161284,1728718233176,-5185.05916815,0.00055079,84]
[340161285,1728718233189,-1000.0,0.00055079,120]
[340161286,1728718233199,-500.0,0.00055079,120]
[340161287,1728718233209,-500.0,0.00055079,120]
[340161288,1728718233219,-398.10848635,0.00055079,120]
[340161289,1728718233229,-151.0,0.00055079,120]
[340161290,1728718233239,-1032.38525161,0.0005508,90]
[340161291,1728718233250,-554.08,0.00055179,18]
[340161292,1728718233260,-1566.879,0.0005518,90]
[340161293,1728718233270,-3450.23584878,0.00055269,28]
[340161294,1728718233282,-186.20288717,0.0005528,2]
[340161295,1728718233292,-186.20288714,0.00055311,2]
[340161296,1728718233303,-186.20288714,0.00055342,2]
[340161297,1728718233313,-6142.54,0.0005536,10]
[340161298,1728718233323,-5118.78,0.0005536,10]
[340161299,1728718233333,-500.0,0.00055368,120]
[340161300,1728718233343,-500.0,0.00055368,120]
[340161302,1728718233353,-10.32870761,0.00055368,120]
[340161331,1728718239020,-489.67129239,0.00055368,120]
[340161332,1728718239031,-500.0,0.00055368,120]
[340161333,1728718239042,-260.47512239,0.00055368,120]
[340161334,1728718239051,-500.0,0.00055368,120]
[340161335,1728718239063,-500.0,0.00055368,120]
[340161336,1728718239074,-500.0,0.00055368,120]
[340161337,1728718239085,-205.45040336,0.00055368,120]
[340161348,1728718240795,-294.54959664,0.00055368,120]
[340161349,1728718240804,-207.43249107,0.00055368,120]
[340161350,1728718240816,-292.56750893,0.00055368,120]
[340161351,1728718240826,-500.0,0.00055368,120]
[340161352,1728718240836,-500.0,0.00055368,120]
[340161353,1728718240846,-500.0,0.00055368,120]
[340161354,1728718240856,-500.0,0.00055368,120]
[340161355,1728718240868,-500.0,0.00055368,120]
[340161356,1728718240879,-500.0,0.00055368,120]
[340161357,1728718240889,-500.0,0.00055368,120]
[340161358,1728718240900,-573.4,0.00055368,120]
[340161359,1728718240911,-500.0,0.00055368,120]
[340161360,1728718240923,-668.11108935,0.00055369,63]
[340161361,1728718240938,-5029.2288601,0.00055369,63]
[340161394,1728718243763,-3099.5,0.00055369,63]
[340161400,1728718244079,-76.75889435,0.00055369,63]
[340161413,1728718246692,-4737.10960014,0.00055369,63]
[340161414,1728718246703,-151.0,0.0005537,120]
[340161415,1728718246714,-151.0,0.0005537,120]
[340161416,1728718246725,-151.0,0.0005537,120]
[340161417,1728718246737,-151.0,0.0005537,60]
[340161418,1728718246746,-151.0,0.0005537,60]
[340161419,1728718246756,-162.781644,0.0005537,120]
[340161420,1728718246769,-151.0,0.0005537,120]
[340161421,1728718246779,-4265.65,0.0005537,10]
[340161422,1728718246788,-24098.6254972,0.0005537,8]
[340161423,1728718246798,-3401.21625572,0.0005537,8]
[340161424,1728718246808,-186.20288714,0.00055373,2]
[340161425,1728718246817,-501.98208771,0.00055379,120]
[340161426,1728718246826,-289.097262,0.00055379,120]
[340161427,1728718246837,-24098.6254972,0.00055379,8]
[340161428,1728718246847,-3401.21625572,0.00055379,8]
[340161429,1728718246857,-261.38330156,0.00055379,120]
[340161430,1728718246867,-212.79768976,0.00055379,120]
[340161431,1728718246878,-295.91658056,0.00055379,120]
[340161432,1728718246887,-239.924154,0.0005538,60]
[340161433,1728718246898,-5000.0,0.0005538,120]
[340161434,1728718246907,-5000.0,0.0005538,120]
[340161435,1728718246917,-5000.0,0.0005538,120]
[340161436,1728718246926,-5000.0,0.0005538,120]
[340161437,1728718246937,-5000.0,0.0005538,120]
[340161438,1728718246947,-5000.0,0.0005538,120]
[340161439,1728718246956,-5000.0,0.0005538,120]
[340161440,1728718246966,-48197.2509944,0.0005538,8]
[340161441,1728718246978,-6802.43251144,0.0005538,8]
[340161442,1728718246988,-5000.0,0.00055388,120]
[340161443,1728718247000,-3982.60689205,0.00055388,120]
[340161444,1728718247013,-1250.0,0.00055389,120]
[340161445,1728718247023,-165.86,0.00055389,30]
[340161446,1728718247033,-165.86,0.00055389,30]
[340161447,1728718247045,-165.86,0.00055389,30]
[340161448,1728718247055,-165.86,0.00055389,30]
[340161449,1728718247065,-165.86,0.00055389,30]
[340161450,1728718247076,-1000.0,0.0005539,120]
[340161451,1728718247088,-31391.39977383,0.0005539,120]
[340161452,1728718275968,158.791171,0.00043279,2]
[340161453,1728718276193,158.791171,0.00044031,2]
[340161454,1728718276414,158.791171,0.00044782,2]
[340161455,1728718276630,158.791171,0.00045534,2]
[340161458,1728718341971,523.15975143,0.00039,2]
[340161475,1728718909942,5553.4345936,0.00034,2]
[340161479,1728719146128,-1451.5654064,0.00034,2]
[340161480,1728719146154,-177.792087,0.00044658,2]
[340161481,1728719146177,-300.0,0.00045526,30]
[340161482,1728719146202,-300.0,0.00045526,5]
[340161483,1728719146225,-1264.87434635,0.00045527,2]
[340161486,1728719236099,-2845.54747825,0.00045527,2]
[340161487,1728719236123,-881.66137786,0.00046073,120]
[340161490,1728719348215,-500.0,0.00045,30]
[340161491,1728719348248,-500.0,0.00045,30]
[340161492,1728719348396,-500.0,0.00045,30]
[340161493,1728719348421,-500.0,0.00045,30]
[340161494,1728719348446,-500.0,0.00045,30]
[340161495,1728719348472,-500.0,0.00045,30]
[340161496,1728719348498,-500.0,0.00045,30]
[340161497,1728719348523,-299.0,0.00045,30]
[340161498,1728719348547,-151.0,0.0004927,2]
[340161499,1728719348572,-177.792087,0.00049517,2]
[340161537,1728719431876,-151.0,0.0005108,7]
[340161538,1728719431889,-150.112233,0.00053,45]
[340161540,1728719431899,-162.0,0.00053,120]
[340161542,1728719431911,-153.0,0.00053836,30]
[340161544,1728719431920,-153.0,0.00053836,30]
[340161546,1728719431931,-153.0,0.00053836,30]
[340161548,1728719431940,-153.0,0.00053836,30]
[340161550,1728719431949,-153.0,0.00053836,30]
[340161552,1728719431960,-153.0,0.00053836,30]
[340161554,1728719431970,-153.0,0.00053836,30]
[340161556,1728719431980,-153.0,0.00053836,30]
[340161558,1728719431989,-151.0,0.0005392,5]
[340161560,1728719431999,-150.112233,0.00054,54]
[340161562,1728719432008,-177.792087,0.00054376,2]
[340161563,1728719432018,-4837.02050714,0.00054695,120]
[340161564,1728719432027,-159.803945,0.00054795,120]
[340161565,1728719432037,-150.112233,0.00055,32]
[340161566,1728719432047,-500.0,0.00055178,120]
[340161567,1728719432057,-388.72788526,0.00055178,120]
[340161568,1728719432070,-111.27211474,0.00055178,120]
[340161569,1728719432079,-500.0,0.00055178,120]
[340161570,1728719432090,-530.99,0.00055178,18]
[340161571,1728719432100,-500.0,0.00055179,120]
[340161572,1728719432111,-500.0,0.00055179,120]
[340161573,1728719432121,-200.00000082,0.00055179,120]
[340161574,1728719432131,-564.91,0.00055179,120]
[340161575,1728719432141,-500.0,0.00055179,2]
[340161576,1728719432153,-500.0,0.00055179,120]
[340161577,1728719432166,-1000.0,0.00055179,120]
[340161578,1728719432175,-29.31062842,0.00055179,120]
[340161628,1728719439979,-414.13431735,0.00055179,120]
[340161629,1728719441818,250.0,0.00045085,2]
[340161639,1728719445955,215.0,0.00047,90]
[340161640,1728719446293,215.0,0.00048904,90]
[340161649,1728720331135,-167.523275,0.00044658,2]
[340161650,1728720331159,-150.0,0.00048871,120]
[340161651,1728720331181,-150.04197644,0.00048998,120]
[340161652,1728720331204,-166.0,0.0004927,2]
[340161653,1728720331227,-167.523275,0.00049517,2]
[340161654,1728720331248,-166.0,0.0005108,7]
[340161655,1728720331269,-162.0,0.00053,120]
[340161656,1728720331290,-166.0,0.0005392,5]
[340161657,1728720331312,-167.523275,0.00054376,2]
[340161658,1728720331332,-159.803945,0.00054795,120]
[340161659,1728720331353,-3067.95124515,0.00055078,120]
[340161663,1728720440108,-801.66516057,0.00055078,120]
[340161664,1728720440131,-97.09228828,0.00055178,120]
[340161666,1728720442141,-402.90771172,0.00055178,120]
[340161667,1728720442163,-260.67972385,0.00055178,120]
[340161714,1728720638403,-2592.52958408,0.00053278,84]
[340161715,1728720638413,-10488.85239172,0.00053278,10]
[340161716,1728720638500,-14561.81582854,0.00053278,10]
[340161717,1728720638510,-4276.76988859,0.00055051,28]
[340161718,1728720638520,-155.28,0.00055141,30]
[340161719,1728720638529,-776.42,0.00055141,30]
[340161720,1728720638540,-6103.25,0.00055141,10]
[340161721,1728720638551,-5086.04,0.00055141,10]
[340161722,1728720638563,-4238.37,0.00055141,10]
[340161723,1728720638574,-500.0,0.0005515,120]
[340161724,1728720638584,-500.0,0.0005515,120]
[340161725,1728720638595,-500.0,0.0005515,120]
[340161726,1728720638606,-500.0,0.0005515,120]
[340161727,1728720638618,-207.3408559,0.0005515,120]
[340161728,1728720638629,-207.1416064,0.0005515,120]
[340161729,1728720638640,-182.96831109,0.0005515,120]
[340161730,1728720638652,-6805.35422197,0.00055151,64]
[340161731,1728720638662,-219.55946858,0.00055151,120]
[340161732,1728720638672,-71444.55141038,0.00055151,51]
[340161831,1728720643336,-521.15188795,0.00055151,51]
[340161835,1728720646325,-73.73193728,0.00055151,51]
[340161891,1728721650156,-227.966212,0.00044658,2]
[340161892,1728721650182,-550.0,0.00046417,30]
[340161893,1728721650206,-550.0,0.00046417,5]
[340161894,1728721650229,-737.46282062,0.00046418,120]
[340161896,1728721748541,-400.0,0.00034982,2]
[340161897,1728721748563,-12324.3676988,0.00034983,2]
[340161898,1728721748583,-250.0,0.0003751,2]
[340161899,1728721748604,-350.0,0.00038999,30]
[340161900,1728721748625,-7069.8587482,0.00039,2]
[340161901,1728721752224,-20575.47866994,0.00039,2]
[340161902,1728721752246,-3531.97,0.0004134,10]
[340161903,1728721752267,-2943.31,0.0004134,10]
[340161904,1728721752287,-2452.76,0.0004134,10]
[340161905,1728721752308,-245.2600951,0.00041349,31]
[340161906,1728721752332,-5143.56203199,0.00046418,120]
[340161907,1728721752352,-180.4850268,0.00046485,2]
[340161908,1728721752372,-226.24030447,0.00046518,2]
[340161909,1728721752392,-165.0,0.00046849,90]
[340161910,1728721752412,-165.0,0.00047,90]
[340161911,1728721752514,-166.343179,0.00048003,2]
[340161912,1728721752557,-166.343179,0.00048503,2]
[340161913,1728721752582,-165.0,0.00048904,90]
[340161914,1728721753146,-166.343179,0.00049003,2]
[340161915,1728721753170,-166.343179,0.00049504,2]
[340161916,1728721753196,-227.966212,0.00049517,2]
[340161917,1728721753221,-9061.79916609,0.0005,2]
[340161918,1728721753245,-5040.80425737,0.0005,120]
[340161919,1728721753269,-166.343179,0.00050004,2]
[340161920,1728721758874,2043.97,0.0004134,10]
[340161921,1728721761730,166.343179,0.00034716,2]
[340161922,1728721762359,502.27822382,0.00041373,10]
[340161923,1728721769219,1703.31,0.0004134,10]
[340161924,1728721780093,1419.42,0.0004134,10]
[340161925,1728721783909,151.0,0.0004135,120]
[340161926,1728721785687,152.833089,0.0004135,120]
[340161927,1728721790879,1182.85,0.0004134,10]
[340161928,1728721797706,473.359266,0.00034457,2]
[340161929,1728721798050,473.359266,0.00035142,2]
[340161930,1728721798439,473.359266,0.00035827,2]
[340161931,1728721801521,985.71,0.0004134,10]
[340161945,1728721808922,151.0,0.00049315,30]
[340161946,1728721809295,151.0,0.00049315,30]
[340161947,1728721809933,151.0,0.00049315,30]
[340161948,1728721810214,151.0,0.00049315,30]
[340161949,1728721810519,151.0,0.0005,30]
[340161950,1728721811855,821.42,0.0004134,10]
[340161951,1728721817143,339.09507824,0.0004125,2]
[340161952,1728721822646,684.52,0.0004134,10]
[340161964,1728721831844,183.23312185,0.00041349,31]
[340161968,1728721831879,214.87228408,0.00041349,31]
[340162006,1728721832139,-1240.01333378,0.0004135,2]
[340162008,1728721832148,-3027.25712837,0.0004135,2]
[340162010,1728721832158,-8478.82808496,0.0004135,2]
[340162015,1728721832197,-939.69155986,0.0004135,2]
[340162019,1728721833320,570.43,0.0004134,10]
[340162033,1728721838439,-12547.8,0.0004135,2]
[340162034,1728721838559,-54542.55555608,0.0004135,2]
[340162039,1728721840269,-12888.90072555,0.0004135,2]
[340162040,1728721840281,-500.0,0.0004135,2]
[340162041,1728721840291,-300.0,0.0004135,2]
[340162042,1728721840300,-794.48488364,0.0004135,2]
[340162043,1728721840310,-6457.54914958,0.0004135,2]
[340162044,1728721840321,-514.92915389,0.0004135,2]
[340162045,1728721840333,-291.41257845,0.0004135,2]
[340162046,1728721840344,-4156.81747965,0.0004135,2]
[340162047,1728721840356,-320.84192019,0.0004135,2]
[340162048,1728721840368,-1186.88660632,0.0004135,2]
[340162049,1728721840378,-286.27610455,0.0004135,2]
[340162050,1728721840388,-50765.39825148,0.0004135,2]
[340162051,1728721840397,-163.54262327,0.0004135,2]
[340162052,1728721840407,-4127.56548919,0.0004135,2]
[340162053,1728721840415,-10114.10799158,0.0004135,2]
[340162054,1728721840425,-9847.05766869,0.0004135,2]
[340162055,1728721840434,-1168.12288359,0.0004135,2]
[340162056,1728721840443,-154.54518119,0.0004135,2]
[340162057,1728721840454,-173.80642027,0.0004135,2]
[340162058,1728721840463,-20849.2726438,0.0004135,2]
[340162059,1728721840473,-15332.63501493,0.0004135,2]
[340162060,1728721840482,-1519.4078853,0.0004135,2]
[340162061,1728721840491,-437.80486553,0.0004135,2]
[340162062,1728721840501,-223.63120349,0.0004135,2]
[340162063,1728721840510,-1020.07136658,0.0004135,2]
[340162064,1728721840519,-18118.35964389,0.0004135,2]
[340162065,1728721840529,-154037.23653734,0.0004135,2]
[340162066,1728721840539,-955.68072545,0.0004135,2]
[340162067,1728721840548,-1525.27573847,0.0004135,2]
[340162068,1728721840557,-906.00737581,0.0004135,2]
[340162069,1728721840567,-175.68201096,0.0004135,2]
[340162070,1728721840576,-3357.90161346,0.0004135,2]
[340162071,1728721840586,-459.14584325,0.0004135,2]
[340162072,1728721840595,-831.70319742,0.0004135,2]
[340162073,1728721840604,-222.78188852,0.0004135,2]
[340162074,1728721840614,-886.319,0.0004135,2]
[340162075,1728721840623,-1480.0,0.0004135,2]
[340162076,1728721840633,-221.12071633,0.0004135,2]
[340162077,1728721840642,-169.0,0.00051349,120]
[340162078,1728721840652,-272.82532284,0.00052,2]
[340162079,1728721840662,-600.0,0.000528,2]
[340162080,1728721840671,-162.2596,0.00052877,120]
[340162081,1728721840681,-600.0,0.0005335,2]
[340162082,1728721840690,-600.0,0.000539,2]
[340162083,1728721840704,-413.7492508,0.00053973,120]
[340162084,1728721840713,-413.7492508,0.00053973,120]
[340162085,1728721840722,-413.7492509,0.00053973,120]
[340162086,1728721840732,-413.7492508,0.00053973,120]
[340162087,1728721840743,-413.7492508,0.00053973,120]
[340162088,1728721840752,-337.3608549,0.00053973,120]
[340162089,1728721840761,-413.7492508,0.00053973,120]
[340162090,1728721840771,-413.7492508,0.00053973,120]
[340162091,1728721840781,-413.7492508,0.00053973,120]
[340162092,1728721840791,-153.9001161,0.00053973,30]
[340162093,1728721840801,-215.6503119,0.00053973,30]
[340162094,1728721840810,-306.0,0.00053973,30]
[340162095,1728721840819,-210.0488919,0.00053973,30]
[340162096,1728721840828,-210.0488919,0.00053973,30]
[340162097,1728721840838,-151.0,0.00053973,30]
[340162098,1728721840847,-153.0,0.00054247,30]
[340162099,1728721840856,-153.0,0.00054247,30]
[340162100,1728721840866,-153.0,0.00054247,30]
[340162101,1728721840876,-153.0,0.00054247,30]
[340162102,1728721840885,-227.966212,0.00054376,2]
[340162103,1728721840895,-600.0,0.0005445,2]
[340162104,1728721840906,-500.0,0.00054782,10]
[340162105,1728721840914,-154.436,0.00054793,103]
[340162106,1728721840924,-300.0,0.00054794,120]
[340162107,1728721840933,-508.87,0.00054794,18]
[340162108,1728721840942,-413.7492508,0.00054795,120]
[340162109,1728721840952,-407.7386457,0.00054795,120]
[340162110,1728721840961,-628.06,0.0005482,120]
[340162111,1728721840971,-1000.0,0.0005482,120]
[340162112,1728721840980,-500.0,0.0005482,120]
[340162113,1728721840989,-500.0,0.0005482,120]
[340162114,1728721840999,-2118.69712902,0.0005488,2]